Cogmind - Beta 16 @@@ ROGUE MODE // 2025.11.28 @ 00:00:37 Player: Swagumen Result: Destroyed by O3-TYE(R) with Subdweller Laser Performance ------------- Evolutions (0) 0 Regions Visited (2) 400 Robots Destroyed (24) 120 Value Destroyed (521) 521 Prototype IDs (2) 40 Alien Tech Used (0) 0 Bonus (0) 0 TOTAL SCORE: 1081 Bonus ------- None Cogmind --------- Core Integrity 0/250 Matter 265/300 Energy 58/160 System Corruption 0% Temperature Cool (6) Movement Treading (240) Ox1 Location -10/Subcaves Parts ------- > --- POWER (1) -------- Light Nuclear Core > --- PROPULSION (2) --- Light Treads > --- UTILITY (2) ------ Large Storage Unit > --- WEAPON (2) ------- Particle Gun > --- INVENTORY (15) --- Light Treads Light Treads Flight Unit Flight Unit Flight Unit Flight Unit Cooling System Core Shielding Hacking Suite Particle Gun Grenade Launcher Hammer Peak State ------------ > --- POWER ------------ Ion Engine > --- PROPULSION ------- Light Treads Light Treads > --- UTILITY ---------- Cooling System Large Storage Unit > --- WEAPON ----------- Particle Gun Particle Gun > --- INVENTORY -------- Light Ion Engine Light Nuclear Core Light Treads Wheel Flight Unit Flight Unit Flight Unit Core Shielding Hacking Suite Medium Laser Particle Gun Particle Gun Grenade Launcher Hammer [Rating: 12] Favorites ----------- Power Ion Engine Engine Ion Engine Power Core Light Nuclear Core Propulsion Light Treads Treads Light Treads Utility Large Storage Unit Device Cooling System Storage Large Storage Unit Protection Light Armor Plating Weapon Particle Gun Energy Gun Particle Gun Ballistic Gun Light Assault Rifle Impact Weapon Hammer Build | -11 -10 -10 ------- Run | Yrd Mat Sub Slots Evolved . | . . . Power . | . . . Propulsion . | . . . Utility . | . . . Weapon . | . . . Parts Attached 21 | 8 9 4 Power 3 | 1 1 1 Engine 2 | 1 1 . Core 1 | . . 1 Reactor . | . . . Propulsion 3 | 2 . 1 Treads 3 | 2 . 1 Leg . | . . . Wheel . | . . . Hover . | . . . Flight . | . . . Utility 6 | 3 2 1 Device 3 | 2 1 . Storage 2 | 1 1 . Processor . | . . . Hackware . | . . . Protection 1 | . . 1 Artifact . | . . . Weapon 9 | 2 6 1 Energy Gun 6 | 2 3 1 Energy Cannon . | . . . Ballistic Gun 2 | . 2 . Ballistic Cannon . | . . . Launcher . | . . . Special Weapon . | . . . Impact Weapon 1 | . 1 . Slashing Weapon . | . . . Piercing Weapon . | . . . Special Melee Weapon . | . . . Unidentified Prototypes . | . . . Parts Lost 7 | . 1 6 Power 1 | . . 1 Propulsion 2 | . . 2 Utility 2 | . 1 1 Weapon 2 | . . 2 Highest Loss Streak 6 | . 1 6 To Critical Strikes . | . . . Average Backups 10 | 1 10 14 Power 1 | . 1 . Propulsion 4 | . 4 6 Utility 1 | . 1 3 Weapon 3 | . 3 3 Tool/Special . | . . . Unused Backups 11 | . 1 10 Power . | . . . Propulsion 7 | . 1 6 Utility 2 | . . 2 Weapon 2 | . . 2 Tool/Special . | . . . Average Slot Usage (%) 93 | . 93 95 Engine 11 | . 10 12 Treads 27 | . 28 26 Device 11 | . 10 13 Storage 14 | . 14 14 Energy Gun 17 | . 17 14 Ballistic Gun 7 | . 8 . Impact Weapon 3 | . 1 12 Peak Build Rating 12 | 7 12 12 Average Rating 9 | 5 9 10 On Entrance 6 | . 7 11 Avg Prop Armor Cover (%) . | . . . Naked Turns . | . . . Heaviest Build 33 | 13 33 33 Greatest Support 40 | 40 40 40 Greatest Overweight (x) . | . . . Average Overweight (x) . | . . . Largest Inventory Capacity 15 | 8 15 15 Average Capacity 14 | 7 14 15 Most Carried 15 | 4 15 15 Average Carried 10 | 2 10 14 Final Capacity 15 | 8 15 15 Final Carried 15 | 3 15 12 Class Distribution -------------------- 100% | Mutant Dominant Class ---------------- Mutant | -10/Materials Mutant | -10/Subcaves Resources | -11 -10 -10 ----------- Run | Yrd Mat Sub Matter Collected 473 | 252 211 10 Remotely 75 | 75 . . Salvage Created 765 | 75 625 65 Parts 39 | 5 30 4 Haulers Intercepted . | . . . Recyclers Shooed 1 | . 1 . Parts Field Recycled . | . . . Retrieved Matter . | . . . Parts Self-Destructed . | . . . Prevented . | . . . Parts Restored . | . . . Kills | -11 -10 -10 ------- Run | Yrd Mat Sub Combat Hostiles Destroyed 16 | . 14 2 Guns 16 | . 14 2 Classes Destroyed 8 | 2 6 . Worker 1 | . 1 . Tunneler 1 | 1 . . Recycler 2 | 1 1 . Operator 2 | . 2 . Watcher 2 | . 2 . Swarmer 6 | . 6 . Grunt 6 | . 6 . Subdweller 4 | . 2 2 Best Kill Streak 3 | 2 3 1 Combat Bots Only 3 | . 3 1 Max Kills in Single Turn 2 | 1 2 1 Gunslinging . | . . . Exploded . | . . . Melee . | . . . Uniques/NPCs Destroyed . | . . . Combat | -11 -10 -10 -------- Run | Yrd Mat Sub Hostile Shots Fired 84 | . 68 16 Missed 22 | . 18 4 Hits 62 | . 50 12 Projectile 62 | . 50 12 AOE 10 | . . 10 Critical Strikes 1 | . 1 . Damage Taken 1158 | . 544 614 Core 251 | . 79 172 Absorbed by Shields . | . . . Core Remaining (%) 100 | 100 . . Volleys Fired 65 | 11 43 11 Largest 2 | 1 2 2 Hottest 130 | 50 130 130 Shots Fired 116 | 11 86 19 Gun 116 | 11 86 19 Cannon . | . . . Launcher . | . . . Special . | . . . Kinetic 50 | . 50 . Thermal 56 | 11 26 19 Explosive . | . . . Electromagnetic 10 | . 10 . Robot Hit Streak 6 | 5 6 6 Robot Miss Streak 2 | 1 2 1 Penetration Max . | . . . Secondary Targets 2 | . 2 . Max Gunslinging Chain 1 | . 1 . Shots Hit Robots 77 | 9 52 16 Core Hits 34 | 3 27 4 Critical Kills 1 | . 1 . Critical Parts Destroyed . | . . . Critical Strikes 5 | 2 2 1 Burn 4 | 2 1 1 Destroy 1 | . 1 . Melee Attacks 2 | . 2 . Impact 2 | . 2 . Slashing . | . . . Piercing . | . . . Sneak Attacks . | . . . Combat Hostiles . | . . . Follow-up Attacks . | . . . Damage Inflicted 1075 | 126 694 255 Guns 1072 | 126 691 255 Cannons . | . . . Explosions . | . . . Melee . | . . . Ramming 3 | . 3 . Kinetic 312 | . 312 . Thermal 660 | 126 279 255 Explosive . | . . . Electromagnetic 100 | . 100 . Impact . | . . . Slashing . | . . . Piercing . | . . . Highest Corruption . | . . . Average Corruption . | . . . Corruption Purged . | . . . Corruption Blocked . | . . . Overload Shots . | . . . Overflow Damage . | . . . Projectiles . | . . . Explosions . | . . . Melee . | . . . Knockbacks . | . . . Impact . | . . . Kinetic . | . . . Secondary . | . . . Self-Inflicted Damage . | . . . Shots . | . . . Rammed 1 | . 1 . Targets Rammed 1 | . 1 . Kicked . | . . . Crushed . | . . . Highest Temperature 70 | 70 36 . Average Temperature 16 | 30 11 . Received Heat Transfer 204 | . 174 30 Siege Activations . | . . . Martial Activations . | . . . Shielding Activations . | . . . Robots Disrupted . | . . . Combat Hostiles . | . . . Robots Corrupted 1 | . 1 . Combat Hostiles . | . . . Parts Fried 1 | . 1 . Impact Corruptions . | . . . Robots Melted . | . . . Combat Hostiles . | . . . Parts Melted 5 | 1 4 . Heat Transferred 1924 | 518 740 666 Parts Sabotaged . | . . . Parts Stolen . | . . . Parts Stripped . | . . . Power Chain Reactions . | . . . Alert | -11 -10 -10 ------- Run | Yrd Mat Sub Maximum Alert Level . | . . . Low Security (%) 100 | 100 100 . Level 1 . | . . . Level 2 . | . . . Level 3 . | . . . Level 4 . | . . . Level 5 . | . . . High Security . | . . . Max Security . | . . . Peak Influence 128 | 5 128 . Initial . | . . . Average 29 | . 31 . Influence Increases 387 | 10 377 . Destroy 0b10 Robot/C 240 | . 240 . Destroy 0b10 Robot/NC 40 | 10 30 . Destroy Leader 64 | . 64 . Successful Hack 9 | . 9 . Destroy Structure 4 | . 4 . Lose Combat Pursuer 30 | . 30 . Influence Decreases 387 | 10 305 72 Entered New Map 36 | . . 36 Time Decay 341 | 10 295 36 Lost Part 10 | . 10 . Squads Dispatched 3 | . 3 . Investigation . | . . . Extermination . | . . . Reinforcement 3 | . 3 . Assault . | . . . Garrison . | . . . Intercept . | . . . Searches Triggered . | . . . Construction Impeded . | . . . Haulers Reinforced . | . . . Active Scanning Responses . | . . . Cargo Convoy Interrupts . | . . . Stealth | -11 -10 -10 --------- Run | Yrd Mat Sub Distress Signals . | . . . Communications Jammed . | . . . Distress Signals . | . . . Times Spotted 27 | . 24 3 Peak Tracking Total 3 | . 3 2 Tactical Retreats 3 | . 3 . Traps | -11 -10 -10 ------- Run | Yrd Mat Sub Traps Triggered . | . . . Indirectly . | . . . Trap Hack Attempts . | . . . Triggered . | . . . Disarmed . | . . . Reprogrammed . | . . . Reused . | . . . Traps Extracted . | . . . Installed . | . . . Triggered . | . . . Machines | -11 -10 -10 ---------- Run | Yrd Mat Sub Machines Disabled . | . . . Max in Single Turn . | . . . Machines Repaired . | . . . Machines Dismantled . | . . . Machines Sabotaged . | . . . Overloaded Fab Kills . | . . . Hacking | -11 -10 -10 --------- Run | Yrd Mat Sub Machines Accessed 8 | . 8 . Terminals 5 | . 5 . Fabricators . | . . . Repair Stations 1 | . 1 . Recycling Units 2 | . 2 . Scanalyzers . | . . . Garrison Access . | . . . Total Hacks 20 | . 20 . Successful 9 | . 9 . Failed 11 | . 11 . Catastrophic 1 | . 1 . Database Lockouts . | . . . Manual 11 | . 11 . Terminals 13 | . 13 . Fabricators . | . . . Repair Stations 3 | . 3 . Recycling Units 4 | . 4 . Scanalyzers . | . . . Garrison Access . | . . . Terminal Hacks 2 | . 2 . Record 1 | . 1 . Prototype ID Bank 1 | . 1 . Fabricator Hacks . | . . . Repair Station Hacks . | . . . Recycling Unit Hacks 3 | . 3 . Report Inventory 2 | . 2 . Retrieve Components 1 | . 1 . Scanalyzer . | . . . Garrison Access Hacks . | . . . Unauthorized Hacks 4 | . 4 . Terminals 4 | . 4 . Botnet 4 | . 4 . Fabricators . | . . . Repair Stations . | . . . Recycling Units . | . . . Scanalyzers . | . . . Garrison Access . | . . . Data Cores Recovered . | . . . Used . | . . . Hacking Detections 8 | . 8 . Full Trace Events . | . . . Feedback Events . | . . . Feedback Blocked . | . . . Robot Schematics Acquired . | . . . Robots Built . | . . . Authchips . | . . . Time . | . . . Total Robot Build Rating . | . . . Part Schematics Acquired . | . . . Parts Built . | . . . Authchips . | . . . Time . | . . . Total Part Build Rating . | . . . Part Studies Acquired . | . . . Parts Repaired . | . . . Time . | . . . Parts Recycled . | . . . Recycled Matter . | . . . Retrieved Matter . | . . . Retrieved Components 3 | . 3 . Parts Scanalyzed . | . . . Part Schematics Acquired . | . . . Parts Damaged . | . . . Bothacking | -11 -10 -10 ------------ Run | Yrd Mat Sub Used RIF Installer . | . . . Robots Hacked . | . . . Non-combat . | . . . Combat . | . . . Robot Hacks Applied . | . . . Relay Couplers Released . | . . . Fabnet Peak Effective % . | . . . Robots Rewired . | . . . Allies Hacked . | . . . Hacks Repelled . | . . . Allies | -11 -10 -10 -------- Run | Yrd Mat Sub Total Allies . | . . . Largest Group . | . . . Highest-Rated Group . | . . . Highest-Rated Ally . | . . . Total Orders . | . . . Ally Attacks . | . . . Total Damage . | . . . Kills . | . . . Allies Corrupted . | . . . Allies Melted . | . . . Intel | -11 -10 -10 ------- Run | Yrd Mat Sub Active Infowar (turns) 414 | 23 391 . Seismic 414 | 23 391 . Robot Analysis Total . | . . . Derelict Logs Recovered . | . . . Drone Launches . | . . . Drone Recoveries . | . . . Exploration | -11 -10 -10 ------------- Run | Yrd Mat Sub Turns Passed 2103 | 128 1622 353 Spaces Moved 996 | 58 744 194 Core 2 | 2 . . Treads 994 | 56 744 194 Legs . | . . . Wheels . | . . . Hover . | . . . Flight . | . . . Fastest Speed 50 | 50 160 160 Average Speed 159 | 156 160 160 Slowest Speed 160 | 160 160 160 Overloaded Moves . | . . . Propulsion Burnouts . | . . . Robots Hopped . | . . . Potential Cave-ins . | . . . Cave-ins Triggered . | . . . Exploration Rate (%) 38 | 4 93 19 Regions Visited 2 Branch Regions 1 Pre-discovered Areas . | . . . Known Exits Taken . | . . . Unknown Exits Taken 2 | 1 1 . Scrap Searched . | . . . Spaces Dug 2 | . 2 . Terrain Destroyed 2 | . 2 . Melee 2 | . 2 . Projectile . | . . . AOE . | . . . Terrain Rammed . | . . . Walls Destroyed . | . . . Machines Disabled . | . . . Actions | -11 -10 -10 --------- Run | Yrd Mat Sub Total 1390 | 81 1092 217 Wait 271 | . 264 7 Move 994 | 57 743 194 Hop . | . . . Pick Up 25 | 4 21 . Fast Attach 7 | 7 . . Attach 5 | . 2 3 Detach 1 | . 1 . Swap 10 | 1 7 2 Drop 9 | 1 8 . Fire 65 | 11 43 11 Melee 2 | . 2 . Ram . | . . . Kick . | . . . Crush 1 | . 1 . Escape Stasis . | . . . Rewire . | . . . Trap . | . . . Miscellaneous . | . . . Route ------- -11/Scrapyard -10/Materials (discovered 5 exits: [*Mat x2] / [*Min x2] / [*Sub]) -10/Subcaves (discovered 1 exit: [*Scr]) History --------- Turn | Location | Event 6 | -11/Scrapyard | Discovered new exit (range 15) 129 | -11/Scrapyard | Entered Materials 302 | -10/Materials | Build established: Mutant 422 | -10/Materials | Discovered new exit (range 15) 597 | -10/Materials | Discovered new exit (range 8) 713 | -10/Materials | Discovered new exit (range 16) 829 | -10/Materials | Derelicts attacked the area 889 | -10/Materials | Discovered new exit (range 12) 959 | -10/Materials | Discovered new exit (range 16) 1751 | -10/Materials | Entered Subcaves 1752 | -10/Subcaves | Approached by a straggling Scientist 2055 | -10/Subcaves | Disturbed a concealed Subdweller 2077 | -10/Subcaves | Core integrity fell below 50% 2085 | -10/Subcaves | Core integrity fell below 20% 2100 | -10/Subcaves | Ambushed by Subdweller buried in earth 2104 | -10/Subcaves | Destroyed by O3-TYE(R) with Subdweller Laser Last Messages --------------- 01755_ N6-CU1(c): "Hey, let me tag along and I can get us both out of this nasty situation. At least I think I can... The group I got separated from was talking about a shortcut back to the UFD." 01755_ DC-8Q9(u) builds Twisted Machinery. N6-CU1(c): "We're getting close, I can feel it." 01809_ N6-CU1(c) exits level. 01834_ DC-8Q9(u) builds Twisted Machinery. 02055_ QA-DX9(R) angrily emerges from the Twisted Machinery. 02062_ QA-DX9(R) suffers critical hit (Burn). 02062_ QA-DX9(R) destroyed. 02065_ Acquired 10 matter. 02072_ Ion Engine destroyed. 02074_ Lgt. Treads destroyed. 02088_ Particle Gun destroyed. 02092_ Lgt. Armor Plating destroyed. 02101_ O3-TYE(R): "HIDIE!" 02103_ 4A-CCT(R) destroyed. Map ----- +----------------------------------------------------+ | | | | | | | | | | | | | | | | | | | | | | | | | | | | | | | | | | | | | ???????????????????#???#########?????????????????? | | ??????????????????## ## < <<###???????????????? | | ??????????????????# ; <##??????????????? | | ??????????????????# <#??????????????? | | ??????????????????# ; < ##?????????????? | | ??????????????????# < < #?????????????? | | ??????????????????# & #?????????????? | | ???????????????????# @ &%! <#?????????????? | | ??????????????????# ; #* #?????????????? | | ??????????????????# ;R <"#?????????????? | | ??????????????????# ## #??????????????? | | ??????????????????# <#??#??????????????? | | ??????????????????# ;;;;;;# <###???????????????? | | ??????????????????### ### < ###?????????????? | | ????????????????????# ###???????????? | | ????????????????????# ######## ####????????? | | ????????????????????# ####### #????##### | | ????????????????????### ## #???## # | | ??????????????????????# ### ##### #? | | ??????????????????????# ## ### ### | | ??????????????????????# ### ## | | ????????????####??????## ### | | ???????????## ##?????######?### | | ??????###### ###?????????###### | | ??????# ##?????#### #### | | ??????# #???### | | ??????? #???# ## | | ????????? ##??# ### ### | | ?????????? ???## #####?## | | ????? ???? ????## ## #?????# | | #### ?????? ???### ##### #????# | | ???????? ???## ##??## ##??? | +----------------------------------------------------+ Best States ------------- Heat Dissipation 47 Energy Generation 14 Energy Capacity 250 Matter Stores 300 Matter Capacity 300 Sight Range 16 Terrain Scan Density 10 Armor Coverage 150 Evasion (%) 40 Recoil Reduction 2 Item Schematics ----------------- None Robot Schematics ------------------ None Fabricated ------------ Nothing Repaired ---------- Nothing Studied --------- None Alien Tech Used ----------------- None Achievements -------------- Quantum Hacking True Hacker Challenges ------------ None Game ------ Seed HugeFactorySuit Manual? 0 Play Time 00:28:44 Cumulative 21.2 hours Start 2025.11.25 @ 18:29:00 End 2025.11.28 @ 00:00:37 Sessions 2 Manual Loads 0 Difficulty Rogue Special Mode None Game No. 27 Rogue 27 Adventurer 0 Explorer 0 Win Type - Total 0 Types 0/0/0/0/0/0/0/0/0/0 Lore% 18 Gallery% 21 Achievement% 16 Wizard Run 0 Options --------- Layout 1 ASCII 0 Keyboard 0 Movement Mouse Keybinds 0 Fullscreen 0 Font 24/Proggy Map View 50x35 Zoom Use 0% Tactical HUD 1 Map Filters NONE Filters NONE Steam 1 RUN: 94273695-beb3-4bdd-b202-aac351dcbdcb